Cogmind - Beta 14 @@@ ROGUE MODE // 2024.11.29 @ 17:50:39 Player: Fangrelle Result: Destroyed by NH-6I1(R) with Subdweller Beam Cannon Performance ------------- Evolutions (0) 0 Regions Visited (2) 400 Robots Destroyed (13) 65 Value Destroyed (362) 362 Prototype IDs (0) 0 Alien Tech Used (0) 0 Bonus (0) 0 TOTAL SCORE: 827 Bonus ------- None Cogmind --------- Core Integrity 0/250 Matter 295/300 Energy 250/250 System Corruption 2% Temperature Cool (9) Movement Treading (260) Ox1 Location -10/Subcaves Parts ------- > --- POWER (1) -------- Ion Engine > --- PROPULSION (2) --- Spiked Treads (fused) > --- UTILITY (2) ------ Large Storage Unit Makeshift Kinetic Plating > --- WEAPON (2) ------- Battle Cannon Battle Cannon > --- INVENTORY (15) --- High-capacity Matter Pod (200) High-capacity Matter Pod (200) High-capacity Matter Pod (200) Makeshift Light Armor Plating EM Pulse Gun EM Pulse Gun Subdweller Beam Cannon Subdweller Beam Cannon Battle Rifle Barrage Gun Battle Cannon Subdweller Shrapnel Launcher Datajack Multitool Flamer Peak State ------------ > --- POWER ------------ Ion Engine > --- PROPULSION ------- Light Treads Subdweller Monowheel > --- UTILITY ---------- Large Storage Unit Makeshift Kinetic Plating > --- WEAPON ----------- Battle Cannon Battle Cannon > --- INVENTORY -------- Ion Engine Subdweller Monowheel High-capacity Matter Pod High-capacity Matter Pod High-capacity Matter Pod EM Pulse Gun EM Pulse Gun EM Pulse Gun Light Cannon Datajack [Rating: 14] Favorites ----------- Power Ion Engine Engine Ion Engine Propulsion Light Treads Treads Light Treads Leg Aluminum Leg Wheel Subdweller Monowheel Utility Large Storage Unit Storage Large Storage Unit Processor Targeting Computer Protection Makeshift Kinetic Plating Weapon Battle Cannon Energy Gun EM Pulse Gun Energy Cannon Subdweller Beam Cannon Ballistic Cannon Battle Cannon Build | -11 -10 -10 ------- Run | Yrd Mat Sub Slots Evolved . | . . . Power . | . . . Propulsion . | . . . Utility . | . . . Weapon . | . . . Parts Attached 17 | . 6 11 Power 1 | . . 1 Engine 1 | . . 1 Core . | . . . Reactor . | . . . Propulsion 4 | . 2 2 Treads 3 | . 2 1 Leg . | . . . Wheel 1 | . . 1 Hover . | . . . Flight . | . . . Utility 4 | . 3 1 Device . | . . . Storage 1 | . 1 . Processor 2 | . 2 . Hackware . | . . . Protection 1 | . . 1 Artifact . | . . . Weapon 8 | . 1 7 Energy Gun 1 | . 1 . Energy Cannon 2 | . . 2 Ballistic Gun . | . . . Ballistic Cannon 5 | . . 5 Launcher . | . . . Special Weapon . | . . . Impact Weapon . | . . . Slashing Weapon . | . . . Piercing Weapon . | . . . Special Melee Weapon . | . . . Unidentified Prototypes . | . . . Parts Lost 4 | . . 4 Power . | . . . Propulsion 2 | . . 2 Utility 1 | . . 1 Weapon 1 | . . 1 Highest Loss Streak 2 | . . 2 To Critical Strikes . | . . . Average Slot Usage (%) 89 | . 99 86 Engine 14 | . 14 14 Treads 19 | . 27 17 Storage 12 | . 8 14 Processor 5 | . 19 1 Protection 8 | . . 10 Energy Gun 9 | . 28 4 Energy Cannon 1 | . . 2 Ballistic Cannon 16 | . . 21 Peak Build Rating 14 | . 7 14 Average Rating 10 | . 6 11 On Entrance 6 | 6 6 7 Naked Turns . | . . . Heaviest Build 43 | 14 29 43 Greatest Support 40 | 20 40 40 Greatest Overweight (x) 2 | . . 2 Average Overweight (x) . | . . . Largest Inventory Capacity 15 | . 15 15 Average Capacity 14 | . 10 15 Most Carried 15 | . 8 15 Average Carried 10 | . 6 11 Final Capacity 15 | 8 15 15 Final Carried 15 | 6 8 15 Class Distribution -------------------- 56% | Mutant 43% | Derelict-Mutant Dominant Class ---------------- Mutant | -10/Materials Derelict-Mutant | -10/Subcaves Resources | -11 -10 -10 ----------- Run | Yrd Mat Sub Matter Collected 1334 | 200 101 1033 Remotely . | . . . Salvage Created 296 | . 101 195 Parts 23 | . 8 15 Haulers Intercepted . | . . . Recyclers Shooed . | . . . Parts Field Recycled . | . . . Retrieved Matter . | . . . Parts Self-Destructed 14 | . . 14 Prevented . | . . . Kills | -11 -10 -10 ------- Run | Yrd Mat Sub Combat Hostiles Destroyed 11 | . 3 8 Guns 4 | . 3 1 Cannons 7 | . . 7 Classes Destroyed 3 | . 2 1 Watcher 2 | . 2 . Swarmer 4 | . 3 1 Subdweller 7 | . . 7 Best Kill Streak 3 | . 3 2 Combat Bots Only 3 | . 3 2 Max Kills in Single Turn 1 | . 1 1 Gunslinging . | . . . Exploded . | . . . Melee . | . . . Uniques/NPCs Destroyed . | . . . Combat | -11 -10 -10 -------- Run | Yrd Mat Sub Hostile Shots Fired 92 | . 14 78 Missed 33 | . 7 26 Damage Taken 964 | . 71 893 Core 264 | . 30 234 Absorbed by Shields . | . . . Ignored by Resistances 27 | . . 27 Core Remaining (%) 100 | 100 . . Volleys Fired 45 | . 10 35 Largest 2 | . 2 2 Hottest 80 | . 80 80 Shots Fired 89 | . 20 69 Gun 28 | . 20 8 Cannon 61 | . . 61 Launcher . | . . . Special . | . . . Kinetic 61 | . . 61 Thermal . | . . . Explosive . | . . . Electromagnetic 28 | . 20 8 Robot Hit Streak 9 | . 4 9 Robot Miss Streak 3 | . 3 3 Penetration Max . | . . . Secondary Targets . | . . . Shots Hit Robots 42 | . 9 33 Core Hits 19 | . 5 14 Critical Kills . | . . . Critical Parts Destroyed . | . . . Critical Strikes 1 | . . 1 Blast 1 | . . 1 Melee Attacks . | . . . Impact . | . . . Slashing . | . . . Piercing . | . . . Sneak Attacks . | . . . Combat Hostiles . | . . . Follow-up Attacks . | . . . Damage Inflicted 771 | . 139 632 Guns 195 | . 139 56 Cannons 576 | . . 576 Explosions . | . . . Melee . | . . . Ramming . | . . . Kinetic 576 | . . 576 Thermal . | . . . Explosive . | . . . Electromagnetic 195 | . 139 56 Impact . | . . . Slashing . | . . . Piercing . | . . . Highest Corruption 2 | . 2 2 Average Corruption 1 | . 1 2 Corruption Purged . | . . . Corruption Blocked . | . . . Effects 46 | . 7 39 Message Errors 8 | . . 8 Matter Fused 12 | . 4 8 Heat Flow Errors 3 | . . 3 Energy Discharges 4 | . 2 2 Parts Fused 1 | . . 1 Data Loss (minor) 8 | . 1 7 Data Loss (major) 7 | . . 7 Misfires 1 | . . 1 Alerts 2 | . . 2 Overload Shots . | . . . Overflow Damage . | . . . Projectiles . | . . . Explosions . | . . . Melee . | . . . Knockbacks 4 | . . 4 Impact . | . . . Kinetic 4 | . . 4 Secondary . | . . . Self-Inflicted Damage . | . . . Shots . | . . . Rammed . | . . . Targets Rammed . | . . . Kicked . | . . . Crushed . | . . . Highest Temperature 161 | . 90 161 Average Temperature 42 | . 35 63 Received Heat Transfer 162 | . . 162 Siege Activations . | . . . Robots Corrupted . | . . . Combat Hostiles . | . . . Parts Fried 1 | . 1 . Impact Corruptions . | . . . Robots Melted . | . . . Combat Hostiles . | . . . Parts Melted . | . . . Heat Transferred . | . . . Parts Sabotaged . | . . . Parts Stolen . | . . . Parts Stripped . | . . . Power Chain Reactions . | . . . Alert | -11 -10 -10 ------- Run | Yrd Mat Sub Peak Influence 121 | . 121 . Initial . | . . . Average 20 | . 20 . Maximum Alert Level . | . . . Low Security (%) 100 | . 100 . Level 1 . | . . . Level 2 . | . . . Level 3 . | . . . Level 4 . | . . . Level 5 . | . . . High Security . | . . . Max Security . | . . . Squads Dispatched . | . . . Investigation . | . . . Extermination . | . . . Reinforcement . | . . . Assault . | . . . Garrison . | . . . Intercept . | . . . Searches Triggered . | . . . Construction Impeded . | . . . Haulers Reinforced . | . . . Active Scanning Responses . | . . . Cargo Convoy Interrupts . | . . . Stealth | -11 -10 -10 --------- Run | Yrd Mat Sub Distress Signals . | . . . Communications Jammed . | . . . Distress Signals . | . . . Times Spotted 22 | . 4 18 Peak Tracking Total 7 | . 3 7 Tactical Retreats 3 | . . 3 Traps | -11 -10 -10 ------- Run | Yrd Mat Sub Traps Triggered 3 | . 3 . Indirectly . | . . . Trap Hack Attempts . | . . . Triggered . | . . . Disarmed . | . . . Reprogrammed . | . . . Reused . | . . . Traps Extracted . | . . . Installed 1 | . . 1 Triggered . | . . . Machines | -11 -10 -10 ---------- Run | Yrd Mat Sub Machines Disabled 1 | . 1 . Max in Single Turn 1 | . 1 . Machines Repaired . | . . . Machines Dismantled . | . . . Machines Sabotaged . | . . . Overloaded Fab Kills . | . . . Hacking | -11 -10 -10 --------- Run | Yrd Mat Sub Machines Accessed 4 | . 3 1 Terminals 2 | . 2 . Fabricators . | . . . Repair Stations . | . . . Recycling Units 1 | . 1 . Scanalyzers . | . . . Garrison Access . | . . . Total Hacks 17 | . 13 4 Successful 12 | . 8 4 Failed 5 | . 5 . Catastrophic . | . . . Database Lockouts . | . . . Manual 13 | . 13 . Terminals 7 | . 7 . Fabricators . | . . . Repair Stations . | . . . Recycling Units 6 | . 6 . Scanalyzers . | . . . Garrison Access . | . . . Terminal Hacks 4 | . . 4 Record 4 | . . 4 Fabricator Hacks . | . . . Repair Station Hacks . | . . . Recycling Unit Hacks . | . . . Scanalyzer . | . . . Garrison Access Hacks . | . . . Unauthorized Hacks 8 | . 8 . Terminals 4 | . 4 . Assimilate 1 | . 1 . Botnet 1 | . 1 . Operators 1 | . 1 . Skim 1 | . 1 . Fabricators . | . . . Repair Stations . | . . . Recycling Units 4 | . 4 . Monitor 1 | . 1 . Reject 1 | . 1 . Recyclers 1 | . 1 . Mask 1 | . 1 . Scanalyzers . | . . . Garrison Access . | . . . Data Cores Recovered . | . . . Used . | . . . Hacking Detections 2 | . 2 . Full Trace Events . | . . . Feedback Events . | . . . Feedback Blocked . | . . . Robot Schematics Acquired . | . . . Robots Built . | . . . Authchips . | . . . Time . | . . . Total Robot Build Rating . | . . . Part Schematics Acquired . | . . . Parts Built . | . . . Authchips . | . . . Time . | . . . Total Part Build Rating . | . . . Parts Repaired . | . . . Time . | . . . Parts Recycled . | . . . Recycled Matter . | . . . Retrieved Matter . | . . . Retrieved Components . | . . . Parts Scanalyzed . | . . . Part Schematics Acquired . | . . . Parts Damaged . | . . . Bothacking | -11 -10 -10 ------------ Run | Yrd Mat Sub Used RIF Installer . | . . . Robots Hacked . | . . . Non-combat . | . . . Combat . | . . . Robot Hacks Applied . | . . . Relay Couplers Released . | . . . Fabnet Peak Effective % . | . . . Robots Rewired . | . . . Allies Hacked . | . . . Hacks Repelled . | . . . Allies | -11 -10 -10 -------- Run | Yrd Mat Sub Total Allies . | . . . Largest Group . | . . . Highest-Rated Group . | . . . Highest-Rated Ally . | . . . Total Orders . | . . . Ally Attacks . | . . . Total Damage . | . . . Kills . | . . . Allies Corrupted . | . . . Allies Melted . | . . . Intel | -11 -10 -10 ------- Run | Yrd Mat Sub Robot Analysis Total . | . . . Derelict Logs Recovered 1 | . . 1 Drone Launches . | . . . Drone Recoveries . | . . . Exploration | -11 -10 -10 ------------- Run | Yrd Mat Sub Turns Passed 3585 | . 795 2790 Spaces Moved 1578 | 1 448 1129 Core . | . . . Treads 1496 | . 438 1058 Legs 11 | 1 10 . Wheels 71 | . . 71 Hover . | . . . Flight . | . . . Fastest Speed 120 | 120 120 120 Average Speed 207 | 120 159 226 Slowest Speed 360 | 120 160 360 Overloaded Moves . | . . . Propulsion Burnouts . | . . . Robots Hopped . | . . . Cave-ins Triggered . | . . . Exploration Rate (%) 37 | 2 49 60 Regions Visited 2 Branch Regions 1 Pre-discovered Areas . | . . . Known Exits Taken . | . . . Unknown Exits Taken 2 | 1 1 . Scrap Searched 13 | . . 13 Spaces Dug . | . . . Terrain Destroyed . | . . . Melee . | . . . Projectile . | . . . AOE . | . . . Terrain Rammed . | . . . Walls Destroyed . | . . . Machines Disabled . | . . . Actions | -11 -10 -10 --------- Run | Yrd Mat Sub Total 1804 | . 513 1291 Wait 116 | . 32 84 Move 1576 | . 447 1129 Hop . | . . . Pick Up 24 | . 9 15 Fast Attach 11 | . 3 8 Attach 4 | . 3 1 Detach 3 | . . 3 Swap 2 | . . 2 Drop 22 | . 9 13 Fire 45 | . 10 35 Melee . | . . . Ram . | . . . Kick . | . . . Crush . | . . . Escape Stasis . | . . . Rewire . | . . . Trap 1 | . . 1 Miscellaneous . | . . . Route ------- -11/Scrapyard -10/Materials (discovered 2 exits: [*Mat] / *Sub) -10/Subcaves (discovered 3 exits: *Mat x2 / [*Rec]) History --------- Turn | Location | Event 1 | -11/Scrapyard | Discovered new exit (range 0) 1 | -11/Scrapyard | Entered Materials 227 | -10/Materials | Discovered new exit (range 4) 307 | -10/Materials | Build established: Mutant 648 | -10/Materials | Discovered new exit (range 11) 796 | -10/Materials | Entered Subcaves 823 | -10/Subcaves | Shifting Twisted Machinery released Sub. Monowheel 825 | -10/Subcaves | Shifting Twisted Machinery released Sub. Laser 999 | -10/Subcaves | Discovered new exit (range 12) 1006 | -10/Subcaves | Core integrity fell below 50% 1007 | -10/Subcaves | Discovered new exit (range 14) 1193 | -10/Subcaves | A swath of the cavern ceiling suddenly collapsed 1543 | -10/Subcaves | Shifting Twisted Machinery released Spk. Treads 1585 | -10/Subcaves | Core integrity fell below 20% 1658 | -10/Subcaves | Shifting Twisted Machinery released Mak. Light Armor Plating 1870 | -10/Subcaves | Build established: Derelict-Mutant 2330 | -10/Subcaves | Visited Clippyterm 2338 | -10/Subcaves | Identified exit to Materials 2647 | -10/Subcaves | Learned Materials security intel 3138 | -10/Subcaves | Build established: Mutant 3324 | -10/Subcaves | Disturbed a concealed Subdweller 3586 | -10/Subcaves | Destroyed by NH-6I1(R) with Subdweller Beam Cannon Last Messages --------------- 03293_ IT-QRR(u) tweaks Twisted Machinery. 03316_ V0KMUSRI9UP:S:H22,SZO 03333_ SP-5YM(R) destroyed. 03338_ Acquired 33 matter. 03343_ Acquired 1 matter. 03354_ Searching scrap... 03354_ Found Flamer. 03354_ Found Sub. Laser. 03354_ Found 42 Matter. 03355_ Acquired 4 matter. 03359_ Acquired Flamer. 03360_ Searching scrap... 03360_ Found Sub. Power Source. 03360_ Found 36 Matter. 03437_ System corrupted: Heat flow error (+198). 03473_ System corrupted: Substantial component data lost. 03524_ System corrupted: FCS attempts to trigger Battle Cannon. 03524_ System corrupted: Battle Cannon misfires. 03564_ System corrupted: Component data lost. 03577_ 9Z-3OD(R) emerges from the Twisted Machinery. Map ----- +----------------------------------------------------+ | ??????????????# ## ### #??# | | ??????????????# ####?####?# ##??# | | ??????????????## #?####????# # ##### | | ???????????????### #?# #????## # | | ?????????????????## #?# ##???## #### | | ??????????????????# #?# ##??# ## | | ?????????????????## ### #### ##### # ## | | ????????????????## # #???######? | | ????????????????# ""##????????# | | ????????????????# ## ## % #????????# | | ????????????????## ?### ## ##????????# | | ?????????????????##??## #?????????? | | ????????????????????## ## #?????????? | | ????????????????????# #### ## #????????? | | ????????????????????# # ##?????##?# | | ????????????????????# #?????? ## | | ????????????????????# # ## ?? | | ?????????????????#### ## ## ?# ?# | | ?????????????????# ## ##### ##????# | | ?????????????????## ## ????# #????## | | ??????????????????# ### #???? ###???## | | ??????????????????# #?? #???? ##????## | | ??????????????????## ###??##????##?????# | | ??????????????????# #????????????????# | | ??????????????????## ##????????????????# | | ??????????????# ## @ #????????????????# ### | | ??????????????# ##????????????????###### | | ??????????????# # ## #????????????## ## | | ??????????????## # #?????????????#= # | | ???????????????# ## ##?????????????## *[ | | ???????????????# ##??????????????# ["# | | ???????????????## """ #???????????????## ## | | ????????????????##""" #????????????????#### | | ?????????????????## ???????????????????? | | ??????????????????##""RR" #??????????????????? | | ???????????????????## ###??????????????????? | | ????????????????????# #????????????????????? | | ????????????????????# ????????????????????? | | ????????????????????## ????????????????????? | | ?????????????????????? ????????????????????? | | ?????????????????????? ????????????????????? | | ??????????????????????" ????????????????????? | | ?????????????????????????????????????????????? | | ?????????????????????????????????????????????? | | ?????????????????????????????????????????????? | | ?????????????????????????????????????????????? | | ?????????????????????????????????????????????? | | ?????????????????????????????????????????????? | | ?????????????????????????????????????????????? | | ?????????????????????????????????????????????? | +----------------------------------------------------+ Best States ------------- Heat Dissipation 25 Energy Generation 10 Energy Capacity 250 Matter Stores 300 Matter Capacity 300 Sight Range 16 Terrain Scan Density 10 Armor Coverage 100 Resistance: KI 10 Evasion (%) 55 Targeting Accuracy 10 Recoil Reduction 2 Item Schematics ----------------- None Robot Schematics ------------------ None Fabricated ------------ Nothing Alien Tech Used ----------------- None Achievements -------------- None Challenges ------------ None Game ------ Seed ShieldDynamicLegs Manual? 0 Play Time 00:15:18 Cumulative 147.6 hours Start 2024.11.29 @ 00:49:28 End 2024.11.29 @ 17:50:39 Sessions 3 Manual Loads 0 Difficulty Rogue Special Mode None Game No. 277 Rogue 277 Adventurer 0 Explorer 0 Win Type - Total 0 Types 0/0/0/0/0/0/0/0/0 Lore% 45 Gallery% 41 Achievement% 36 Wizard Run 0 Options --------- Layout 0 ASCII 0 Keyboard 0 Movement Mouse Keybinds 0 Fullscreen 1 Font 24/Smallcaps Map View 91x25 Zoom Use 85% Tactical HUD 1 Map Filters NONE Filters NONE Steam 1 RUN: f107b472-a69a-4e2e-a066-c46e00cece5e